[Event "72nd RUS-ch Higher League 2019"]
[Site "Yaroslavl"]
[Date "2019.06.27"]
[Round "1.7"]
[White "Levin, Evgeny A."]
[Black "Ponkratov, Pavel"]
[Result "1-0"]
[ECO "D82"]
[WhiteElo "2504"]
[BlackElo "2649"]
[Annotator "RC"]
[PlyCount "111"]
[EventDate "2019.06.27"]
[EventType "swiss"]
[EventCountry "RUS"]
[SourceTitle "playchess.com"]
[Source "ChessBase"]
[SourceQuality "1"]
[TimeControl "40/5400+30:1800+30"]

1. d4 {[%emt 0:07:28]} Nf6 {[%emt 0:00:00]} 2. c4 {[%emt 0:00:22]} g6 {[%emt 0:00:00]} 3. Nc3 {[%emt 0:00:22]} d5 {[%emt 0:00:00]} 4. Bf4 {[%emt 0:00:22]} Bg7 {[%emt 0:00:43]} 5. e3 {[%emt 0:02:38]} e6 {[%emt 0:05:24]} 6. Nf3 {[%emt 0:09:42]} O-O {[%emt 0:00:08]} 7. Rc1 {[%emt 0:01:36]} a6 {[%emt 0:10:18]} 8. a3 {[%emt 0:03:32]} b6 {[%emt 0:01:32]} 9. b4 {[%emt 0:18:58]} dxc4 {[%emt 0:00:36]} 10. Bxc4 {[%emt 0:00:17]} Bb7 {[%emt 0:00:04]} 11. O-O {[%emt 0:00:48]} Nbd7 {[%emt 0:00:06]} 12. d5 {[%emt 0:06:50]} Re8 {[%emt 0:08:29]} 13. dxe6 {[%emt 0:08:00]} fxe6 {[%emt 0:00:04]} 14. Qb3 {[%emt 0:08:10]} Nf8 {[%emt 0:02:18]} 15. Rfd1 {[%emt 0:08:54]} Qe7 {[%emt 0:00:36]} 16. a4 {[%emt 0:01:22]} Kh8 {[%emt 0:04:49]} 17. Be2 {[%emt 0:01:51]} Rac8 {[%emt 0:00:39]} 18. Ne5 {[%emt 0:02:33]} N8d7 {[%emt 0:03:30]} 19. Bf3 {[%emt 0:03:28]} Bxf3 {[%emt 0:01:04]} 20. Nxf3 {[%emt 0:00:14]} c6 {[%emt 0:03:09]} 21. Bd6 {[%emt 0:01:16]} Qf7 {[%emt 0:00:04]} 22. Ng5 {[%emt 0:01:49]} Qg8 {[%emt 0:00:06]} 23. Bg3 {[%emt 0:02:14]} c5 {[%emt 0:02:43]} 24. bxc5 {[%emt 0:02:52]} Rxc5 {[%emt 0:00:05]} 25. Nge4 {[%emt 0:00:28]} Rc6 {[%emt 0:00:39]} 26. Nxf6 {[%emt 0:04:46]} Nxf6 {[%emt 0:00:04]} 27. Ne2 {[%emt 0:00:13]} Rxc1 {[%emt 0:02:14]} 28. Rxc1 {[%emt 0:00:15]} Nd7 {[%emt 0:02:14]} 29. Rc7 {[%emt 0:00:50]} Rd8 {[%emt 0:00:05]} 30. h3 {[%emt 0:01:59]} e5 {[%emt 0:00:17]} 31. Qxg8+ {[%emt 0:00:45]} Kxg8 {[%emt 0:00:04]} 32. Nc3 {[%emt 0:00:28]} Kf7 {[%emt 0:05:39]} 33. Nd5 {[%emt 0:00:35]} Ke6 {[%emt 0:00:06]} 34. e4 {[%emt 0:00:19]} Kd6 {[%emt 0:00:07]} 35. Ra7 {[%emt 0:00:36]} a5 {[%emt 0:02:48]} 36. Bh4 {[%emt 0:00:34]} Rb8 {[%emt 0:00:34]} 37. Be7+ {[%emt 0:00:29]} Ke6 {[%emt 0:00:04]} 38. Ba3 {[%emt 0:00:19]} Bf8 {[%emt 0:00:54]} 39. Nc7+ {[%emt 0:00:37]} Kf6 {[%emt 0:00:07]} 40. Nd5+ {[%emt 0:00:00]} Ke6 {[%emt 0:00:00]} 41. Nc7+ {[%emt 0:14:31]} Kf6 {[%emt 0:02:31]} 42. Bb2 {[%emt 0:14:54]} Bc5 {[%emt 0:10:18]} 43. Kf1 {[%emt 0:00:36]} Rf8 {[%emt 0:06:27]} 44. Ke2 {[%emt 0:02:34]} g5 {[%emt 0:00:07]} 45. f3 {[%emt 0:00:31]} Rd8 {[%emt 0:01:28]} 46. g3 {[%emt 0:00:30]} Ke7 {[%emt 0:02:06]} 47. Nb5 {[%emt 0:00:29]} Bd6 {[%emt 0:02:51]} 48. Bc1 {[%emt 0:00:21]} h6 {[%emt 0:00:06]} 49. Be3 {[%emt 0:00:30]} Rb8 {[%emt 0:01:28]} 50. h4 {[%emt 0:00:40]} gxh4 {[%emt 0:00:36]} 51. gxh4 {[%emt 0:00:03]} h5 {[%emt 0:00:02]} 52. Bg5+ {[%emt 0:00:20]} Ke6 {[%emt 0:00:28]} 53. f4 {[%emt 0:00:13]} exf4 {[%emt 0:00:20]} 54. Nd4+ {[%emt 0:00:13]} Ke5 {[%emt 0:00:06]} 55. Rxd7 {[%emt 0:00:39]} Kxd4 {[%emt 0:00:27]} 56. Kf3 {[%emt 0:00:43] Kd5} 1-0

[Event "72nd RUS-ch Higher League 2019"]
[Site "Yaroslavl"]
[Date "2019.06.27"]
[Round "1.15"]
[White "Bigaliev, Renat"]
[Black "Khismatullin, Denis"]
[Result "1-0"]
[ECO "E10"]
[WhiteElo "2427"]
[BlackElo "2618"]
[Annotator "RC"]
[PlyCount "101"]
[EventDate "2019.06.27"]
[EventType "swiss"]
[EventCountry "RUS"]
[SourceTitle "playchess.com"]
[Source "ChessBase"]
[SourceQuality "1"]
[TimeControl "40/5400+30:1800+30"]

1. d4 {[%emt 0:00:00]} Nf6 {[%emt 0:02:01]} 2. c4 {[%emt 0:00:00]} e6 {[%emt 0:00:09]} 3. Nf3 {[%emt 0:00:13]} a6 {[%emt 0:00:26]} 4. Nc3 {[%emt 0:07:36]} d5 {[%emt 0:00:23]} 5. Bg5 {[%emt 0:02:08]} dxc4 {[%emt 0:03:45]} 6. a4 {[%emt 0:00:40]} Bb4 {[%emt 0:02:58]} 7. e3 {[%emt 0:07:43]} h6 {[%emt 0:10:53]} 8. Bxf6 {[%emt 0:01:06]} Qxf6 {[%emt 0:00:05]} 9. Bxc4 {[%emt 0:00:21]} c5 {[%emt 0:00:10]} 10. O-O {[%emt 0:02:31]} cxd4 {[%emt 0:00:32]} 11. Ne4 {[%emt 0:09:33]} Qe7 {[%emt 0:04:08]} 12. Nxd4 {[%emt 0:04:33]} O-O {[%emt 0:04:18]} 13. Qb3 {[%emt 0:10:44]} Bd7 {[%emt 0:05:07]} 14. Nc2 {[%emt 0:05:07]} Ba5 {[%emt 0:05:40]} 15. Qxb7 {[%emt 0:08:39]} Nc6 {[%emt 0:02:22]} 16. Qb3 {[%emt 0:01:48]} Ne5 {[%emt 0:03:04]} 17. Be2 {[%emt 0:03:20]} Bc6 {[%emt 0:03:43]} 18. Ng3 {[%emt 0:01:08]} Rfb8 {[%emt 0:06:45]} 19. Qa3 {[%emt 0:00:22]} Qxa3 {[%emt 0:11:47]} 20. Nxa3 {[%emt 0:01:10]} Rb4 {[%emt 0:06:34]} 21. Rfc1 {[%emt 0:05:27]} Rxb2 {[%emt 0:16:52]} 22. Rc5 {[%emt 0:07:29]} Bc7 {[%emt 0:02:47]} 23. f4 {[%emt 0:02:06]} Bd6 {[%emt 0:00:33]} 24. Rcc1 {[%emt 0:02:02]} Bd5 {[%emt 0:01:33]} 25. fxe5 {[%emt 0:07:49]} Bxe5 {[%emt 0:00:02]} 26. Nc4 {[%emt 0:02:24]} Rxe2 {[%emt 0:02:39]} 27. Nxe5 {[%emt 0:00:21]} Rxg2+ {[%emt 0:01:38]} 28. Kf1 {[%emt 0:00:06]} Rxh2 {[%emt 0:01:05]} 29. e4 {[%emt 0:00:16]} Bb3 {[%emt 0:00:53]} 30. Rc3 {[%emt 0:04:15]} Rb8 {[%emt 0:01:30]} 31. Nc6 {[%emt 0:03:02]} Rb6 {[%emt 0:00:06]} 32. a5 {[%emt 0:00:47]} Rb7 {[%emt 0:00:19]} 33. Nd4 {[%emt 0:00:48]} Ba2 {[%emt 0:01:07]} 34. Nde2 {[%emt 0:00:36]} Rb2 {[%emt 0:00:30]} 35. Rc6 {[%emt 0:00:38]} h5 {[%emt 0:00:23]} 36. Kg1 {[%emt 0:00:13]} Rh3 {[%emt 0:00:33]} 37. Rb6 {[%emt 0:00:38]} Rd2 {[%emt 0:00:25]} 38. Kg2 {[%emt 0:00:30]} Rh4 {[%emt 0:00:07]} 39. Rc1 {[%emt 0:00:42]} f5 {[%emt 0:00:32]} 40. exf5 {[%emt 0:00:00]} exf5 {[%emt 0:00:00]} 41. Kf2 {[%emt 0:17:41]} Bd5 {[%emt 0:20:52]} 42. Rd6 {[%emt 0:07:31]} f4 {[%emt 0:01:10]} 43. Nf1 {[%emt 0:00:41]} Rd3 {[%emt 0:00:33]} 44. Rc3 {[%emt 0:00:57]} Rd1 {[%emt 0:01:16]} 45. Rc8+ {[%emt 0:00:48]} Kh7 {[%emt 0:03:42]} 46. Rcd8 {[%emt 0:00:04]} f3 {[%emt 0:06:29]} 47. Nc3 {[%emt 0:00:12]} Rxf1+ {[%emt 0:00:29]} 48. Kxf1 {[%emt 0:00:19]} Rh1+ {[%emt 0:00:29]} 49. Kf2 {[%emt 0:00:01]} Rh2+ {[%emt 0:00:08]} 50. Ke3 {[%emt 0:00:45]} Bb7 {[%emt 0:00:57]} 51. Rb6 {[%emt 0:01:07]} 1-0

[Event "72nd RUS-ch Higher League 2019"]
[Site "Yaroslavl"]
[Date "2019.06.27"]
[Round "1.21"]
[White "Rychkov, Oleg"]
[Black "Kobalia, Mikhail"]
[Result "1-0"]
[ECO "E73"]
[WhiteElo "2409"]
[BlackElo "2608"]
[Annotator "RC"]
[PlyCount "89"]
[EventDate "2019.06.27"]
[EventType "swiss"]
[EventCountry "RUS"]
[SourceTitle "playchess.com"]
[Source "ChessBase"]
[SourceQuality "1"]
[TimeControl "40/5400+30:1800+30"]

1. c4 {[%emt 0:00:00]} g6 {[%emt 0:06:14]} 2. Nc3 {[%emt 0:00:00]} Bg7 {[%emt 0:00:05]} 3. d4 {[%emt 0:00:36]} Nf6 {[%emt 0:00:47]} 4. e4 {[%emt 0:00:19]} O-O {[%emt 0:00:06]} 5. Be2 {[%emt 0:00:37]} d6 {[%emt 0:00:11]} 6. Bg5 {[%emt 0:00:09]} Nbd7 {[%emt 0:02:04]} 7. Qd2 {[%emt 0:00:31]} e5 {[%emt 0:00:28]} 8. d5 {[%emt 0:03:18]} Nc5 {[%emt 0:01:18]} 9. f3 {[%emt 0:00:19]} h6 {[%emt 0:05:41]} 10. Bh4 {[%emt 0:09:03]} a5 {[%emt 0:04:22]} 11. g4 {[%emt 0:01:14]} Bd7 {[%emt 0:02:40]} 12. Nh3 {[%emt 0:06:25]} Na4 {[%emt 0:11:51]} 13. Nxa4 {[%emt 0:09:20]} Bxa4 {[%emt 0:00:25]} 14. Nf2 {[%emt 0:00:32]} Bd7 {[%emt 0:00:42]} 15. Nd1 {[%emt 0:10:16]} Kh7 {[%emt 0:03:15]} 16. Bf2 {[%emt 0:05:08]} Qb8 {[%emt 0:08:25]} 17. h4 {[%emt 0:04:53]} h5 {[%emt 0:01:52]} 18. g5 {[%emt 0:00:29]} Ne8 {[%emt 0:00:53]} 19. Nc3 {[%emt 0:04:01]} f6 {[%emt 0:04:44]} 20. Be3 {[%emt 0:03:04]} Rf7 {[%emt 0:03:24]} 21. O-O-O {[%emt 0:01:54]} f5 {[%emt 0:07:05]} 22. exf5 {[%emt 0:06:46]} Bxf5 {[%emt 0:00:06]} 23. Ne4 {[%emt 0:01:25]} Bh8 {[%emt 0:01:59]} 24. Bd3 {[%emt 0:01:59]} c6 {[%emt 0:02:02]} 25. Kb1 {[%emt 0:01:14]} a4 {[%emt 0:03:45]} 26. a3 {[%emt 0:00:35]} c5 {[%emt 0:01:34]} 27. Rhf1 {[%emt 0:04:18]} Ra7 {[%emt 0:01:06]} 28. Qc2 {[%emt 0:01:23]} Qc8 {[%emt 0:03:37]} 29. f4 {[%emt 0:01:20]} b5 {[%emt 0:03:11]} 30. cxb5 {[%emt 0:02:25]} Rae7 {[%emt 0:06:31]} 31. fxe5 {[%emt 0:05:40]} Rxe5 {[%emt 0:02:35]} 32. Ng3 {[%emt 0:01:34]} Ng7 {[%emt 0:05:22]} 33. Bxf5 {[%emt 0:02:08]} Nxf5 {[%emt 0:00:27]} 34. Nxf5 {[%emt 0:00:41]} Rexf5 {[%emt 0:02:00]} 35. Rxf5 {[%emt 0:00:29]} Qxf5 {[%emt 0:03:38]} 36. Qxf5 {[%emt 0:00:26]} Rxf5 {[%emt 0:01:37]} 37. Kc2 {[%emt 0:08:15]} Rf7 {[%emt 0:00:01]} 38. b3 {[%emt 0:01:48]} axb3+ {[%emt 0:00:01]} 39. Kxb3 {[%emt 0:00:06]} Rf3 {[%emt 0:00:01]} 40. Rd3 {[%emt 0:00:00]} Bd4 {[%emt 0:00:00]} 41. b6 {[%emt 0:00:23]} Bxe3 {[%emt 0:01:55]} 42. b7 {[%emt 0:00:09]} c4+ {[%emt 0:00:03]} 43. Kxc4 {[%emt 0:00:49]} Rf4+ {[%emt 0:01:34]} 44. Kb5 {[%emt 0:00:28]} Ba7 {[%emt 0:00:19]} 45. Rc3 {[%emt 0:00:04]} 1-0

[Event "72nd RUS-ch Higher League 2019"]
[Site "Yaroslavl"]
[Date "2019.06.27"]
[Round "1.23"]
[White "Truskavetsky, Alexandr"]
[Black "Paravyan, David"]
[Result "0-1"]
[ECO "A40"]
[WhiteElo "2398"]
[BlackElo "2605"]
[Annotator "RC"]
[PlyCount "111"]
[EventDate "2019.06.27"]
[EventType "swiss"]
[EventCountry "RUS"]
[SourceTitle "playchess.com"]
[Source "ChessBase"]
[SourceQuality "1"]
[TimeControl "40/5400+30:1800+30"]

1. d4 {[%emt 0:00:00]} Nf6 {[%emt 0:00:00]} 2. c4 {[%emt 0:00:00]} e6 {[%emt 0:00:00]} 3. g3 {[%emt 0:00:31]} d5 {[%emt 0:00:00]} 4. Nf3 {[%emt 0:00:24]} Bb4+ {[%emt 0:00:00]} 5. Bd2 {[%emt 0:00:28]} a5 {[%emt 0:00:25]} 6. Bg2 {[%emt 0:01:20]} O-O {[%emt 0:00:09]} 7. O-O {[%emt 0:01:26]} dxc4 {[%emt 0:00:07]} 8. Qc2 {[%emt 0:04:30]} Bxd2 {[%emt 0:00:13]} 9. Nbxd2 {[%emt 0:00:11]} b5 {[%emt 0:00:15]} 10. a4 {[%emt 0:04:13]} c6 {[%emt 0:00:28]} 11. b3 {[%emt 0:19:14]} cxb3 {[%emt 0:00:47]} 12. Nxb3 {[%emt 0:00:06]} Nd5 {[%emt 0:02:20]} 13. e4 {[%emt 0:03:41]} Nb6 {[%emt 0:07:55]} 14. axb5 {[%emt 0:01:10]} a4 {[%emt 0:02:28]} 15. Nc5 {[%emt 0:00:06]} cxb5 {[%emt 0:00:18]} 16. Rfb1 {[%emt 0:04:04]} Nc6 {[%emt 0:26:52]} 17. Rxb5 {[%emt 0:01:12]} Nxd4 {[%emt 0:00:58]} 18. Nxd4 {[%emt 0:00:07]} Qxd4 {[%emt 0:00:04]} 19. Rd1 {[%emt 0:20:13]} Qc4 {[%emt 0:00:25]} 20. Qb1 {[%emt 0:01:21]} a3 {[%emt 0:03:34]} 21. Bf1 {[%emt 0:00:11]} a2 {[%emt 0:09:05]} 22. Qa1 {[%emt 0:00:12]} Qc2 {[%emt 0:00:06]} 23. Nb3 {[%emt 0:00:28]} Qc7 {[%emt 0:30:19]} 24. Rc1 {[%emt 0:07:12]} Qd8 {[%emt 0:00:28]} 25. Rd1 {[%emt 0:05:57]} Bd7 {[%emt 0:00:04]} 26. Rb4 {[%emt 0:02:52]} Qc7 {[%emt 0:00:47]} 27. Rd2 {[%emt 0:01:17]} Qa7 {[%emt 0:03:28]} 28. Nc1 {[%emt 0:01:06]} Qa5 {[%emt 0:01:18]} 29. Rbb2 {[%emt 0:01:15]} Bc6 {[%emt 0:02:38]} 30. Nb3 {[%emt 0:04:35]} Qg5 {[%emt 0:05:12]} 31. h4 {[%emt 0:08:16]} Qe5 {[%emt 0:02:01]} 32. Nd4 {[%emt 0:01:44]} Qxe4 {[%emt 0:00:03]} 33. Nxc6 {[%emt 0:01:28]} Qxc6 {[%emt 0:00:02]} 34. Bg2 {[%emt 0:02:00]} Nd5 {[%emt 0:00:03]} 35. Bxd5 {[%emt 0:00:55]} exd5 {[%emt 0:00:05]} 36. Rxa2 {[%emt 0:00:18]} Rab8 {[%emt 0:02:01]} 37. Ra6 {[%emt 0:02:39]} Qd7 {[%emt 0:00:17]} 38. Qe5 {[%emt 0:01:20]} Rfd8 {[%emt 0:01:57]} 39. Kh2 {[%emt 0:00:22]} d4 {[%emt 0:00:49]} 40. Ra5 {[%emt 0:00:00]} h6 {[%emt 0:00:00]} 41. Qe4 {[%emt 0:02:45]} Rbc8 {[%emt 0:09:04]} 42. Ra3 {[%emt 0:02:48]} Rc6 {[%emt 0:02:05]} 43. Rad3 {[%emt 0:00:48]} Rd6 {[%emt 0:00:08]} 44. Qf4 {[%emt 0:00:47]} Rd5 {[%emt 0:00:56]} 45. Qe4 {[%emt 0:04:17]} g6 {[%emt 0:00:34]} 46. Qf4 {[%emt 0:00:45]} Kg7 {[%emt 0:00:59]} 47. Qe4 {[%emt 0:00:17]} g5 {[%emt 0:03:17]} 48. hxg5 {[%emt 0:00:26]} hxg5 {[%emt 0:00:05]} 49. Kg2 {[%emt 0:06:46]} Re8 {[%emt 0:00:50]} 50. Qf3 {[%emt 0:00:19]} Rh8 {[%emt 0:01:07]} 51. Kg1 {[%emt 0:02:54]} Re5 {[%emt 0:05:57]} 52. Rd1 {[%emt 0:00:35]} g4 {[%emt 0:06:47]} 53. Qf4 {[%emt 0:10:17]} Reh5 {[%emt 0:00:06]} 54. Qe4 {[%emt 0:00:11]} Qf5 {[%emt 0:03:26]} 55. Qxd4+ {[%emt 0:00:28]} Kg6 {[%emt 0:00:06]} 56. Kf1 {[%emt 0:03:30]} 0-1

[Event "72nd RUS-ch Higher League 2019"]
[Site "Yaroslavl"]
[Date "2019.06.27"]
[Round "1.24"]
[White "Popov, Ivan"]
[Black "Kanter, Eduard"]
[Result "1-0"]
[ECO "B24"]
[WhiteElo "2599"]
[BlackElo "2392"]
[Annotator "ChessBase"]
[PlyCount "75"]
[EventDate "2019.06.27"]
[EventType "swiss"]
[EventCountry "RUS"]
[SourceTitle "playchess.com"]
[Source "ChessBase"]
[SourceQuality "1"]
[TimeControl "40/5400+30:1800+30"]

1. e4 {[%emt 0:00:00]} c5 {[%emt 0:00:00]} 2. Nc3 {[%emt 0:00:00]} Nc6 {[%emt 0:00:03]} 3. Bb5 {[%emt 0:00:00]} Nd4 {[%emt 0:00:47]} 4. Nf3 {[%emt 0:00:06]} a6 {[%emt 0:00:13]} 5. Bd3 {[%emt 0:00:23]} d6 {[%emt 0:05:33]} 6. Nxd4 {[%emt 0:01:51]} cxd4 {[%emt 0:00:07]} 7. Ne2 {[%emt 0:00:09]} e5 {[%emt 0:00:05]} 8. c3 {[%emt 0:08:17]} dxc3 {[%emt 0:00:11]} 9. dxc3 {[%emt 0:00:06]} Be7 {[%emt 0:03:00]} 10. O-O {[%emt 0:03:36]} Nf6 {[%emt 0:00:42]} 11. Bg5 {[%emt 0:00:30]} Be6 {[%emt 0:18:16]} 12. Bxf6 {[%emt 0:16:09]} Bxf6 {[%emt 0:00:06]} 13. Bc2 {[%emt 0:00:06]} O-O {[%emt 0:32:07]} 14. Bb3 {[%emt 0:00:53]} Qd7 {[%emt 0:02:08]} 15. Qc2 {[%emt 0:04:39]} Rac8 {[%emt 0:11:40]} 16. Rad1 {[%emt 0:02:56]} Be7 {[%emt 0:04:04]} 17. Rd3 {[%emt 0:12:24]} Qc6 {[%emt 0:03:15]} 18. Ng3 {[%emt 0:04:01]} g6 {[%emt 0:00:34]} 19. Rfd1 {[%emt 0:00:47]} b5 {[%emt 0:02:29]} 20. Bd5 {[%emt 0:10:08]} Qd7 {[%emt 0:06:40]} 21. Nf1 {[%emt 0:02:53]} b4 {[%emt 0:04:13]} 22. c4 {[%emt 0:02:10]} Qc7 {[%emt 0:00:59]} 23. b3 {[%emt 0:02:21]} a5 {[%emt 0:00:10]} 24. Qe2 {[%emt 0:03:34]} Rfe8 {[%emt 0:00:22]} 25. Bxe6 {[%emt 0:03:45]} fxe6 {[%emt 0:00:06]} 26. Qg4 {[%emt 0:00:03]} Bf8 {[%emt 0:00:15]} 27. h4 {[%emt 0:00:05]} Qf7 {[%emt 0:01:18]} 28. Rf3 {[%emt 0:00:51]} Qg7 {[%emt 0:01:36]} 29. Rg3 {[%emt 0:01:51]} Kh8 {[%emt 0:02:05]} 30. h5 {[%emt 0:00:09]} gxh5 {[%emt 0:01:21]} 31. Qxh5 {[%emt 0:00:24]} Qh6 {[%emt 0:00:13]} 32. Qf7 {[%emt 0:02:46]} Be7 {[%emt 0:00:26]} 33. Rh3 {[%emt 0:01:18]} Qg7 {[%emt 0:00:21]} 34. Qxe6 {[%emt 0:00:03]} Rf8 {[%emt 0:00:46]} 35. Ne3 {[%emt 0:01:31]} Qf7 {[%emt 0:00:39]} 36. Qxf7 {[%emt 0:00:07]} Rxf7 {[%emt 0:00:01]} 37. Nf5 {[%emt 0:00:23]} Bf8 {[%emt 0:00:20]} 38. Nxd6 {[%emt 0:00:54]} 1-0

[Event "72nd RUS-ch Higher League 2019"]
[Site "Yaroslavl"]
[Date "2019.06.27"]
[Round "1.25"]
[White "Eraschenkov, Denis"]
[Black "Pridorozhni, Aleksei"]
[Result "1/2-1/2"]
[ECO "B30"]
[WhiteElo "2379"]
[BlackElo "2588"]
[Annotator "ChessBase"]
[PlyCount "153"]
[EventDate "2019.06.27"]
[EventType "swiss"]
[EventCountry "RUS"]
[SourceTitle "playchess.com"]
[Source "ChessBase"]
[SourceQuality "1"]
[TimeControl "40/5400+30:1800+30"]

1. e4 {[%emt 0:00:00]} c5 {[%emt 0:01:46]} 2. Nf3 {[%emt 0:00:00]} Nc6 {[%emt 0:00:13]} 3. Nc3 {[%emt 0:00:43]} g6 {[%emt 0:00:30]} 4. Bb5 {[%emt 0:00:38]} Bg7 {[%emt 0:01:00]} 5. Bxc6 {[%emt 0:00:22]} dxc6 {[%emt 0:00:40]} 6. d3 Bg4 7. h3 {[%emt 0:01:55]} Bxf3 {[%emt 0:02:08]} 8. Qxf3 {[%emt 0:00:08]} Nf6 {[%emt 0:00:06]} 9. O-O {[%emt 0:02:26]} O-O {[%emt 0:00:43]} 10. Qg3 {[%emt 0:08:10]} Nh5 {[%emt 0:07:22]} 11. Qh4 {[%emt 0:20:42]} e5 {[%emt 0:02:26]} 12. Qxd8 {[%emt 0:03:02]} Rfxd8 {[%emt 0:03:27]} 13. Be3 {[%emt 0:11:04]} Bf8 {[%emt 0:00:27]} 14. g3 {[%emt 0:13:52]} Ng7 {[%emt 0:00:45]} 15. Nb1 {[%emt 0:10:40]} Ne6 {[%emt 0:03:24]} 16. Nd2 {[%emt 0:00:41]} f5 {[%emt 0:03:40]} 17. exf5 {[%emt 0:03:58]} gxf5 {[%emt 0:00:12]} 18. Rae1 {[%emt 0:00:55]} Re8 {[%emt 0:04:02]} 19. Nf3 {[%emt 0:02:28]} Bg7 {[%emt 0:04:27]} 20. g4 {[%emt 0:02:50]} Rf8 {[%emt 0:11:36]} 21. gxf5 {[%emt 0:00:52]} Rxf5 {[%emt 0:00:07]} 22. Nd2 {[%emt 0:00:26]} Rh5 {[%emt 0:03:36]} 23. Kh2 {[%emt 0:00:48]} Rf8 {[%emt 0:00:48]} 24. Rg1 {[%emt 0:01:08]} Kh8 {[%emt 0:00:39]} 25. Rg4 {[%emt 0:06:22]} b6 {[%emt 0:01:58]} 26. Ne4 {[%emt 0:01:06]} Nf4 {[%emt 0:09:09]} 27. Bxf4 {[%emt 0:03:52]} exf4 {[%emt 0:00:06]} 28. Ng5 {[%emt 0:00:39]} Bh6 {[%emt 0:07:16]} 29. Nf3 {[%emt 0:00:39]} Rhf5 {[%emt 0:02:25]} 30. Re4 {[%emt 0:01:19]} Bg7 {[%emt 0:06:29]} 31. b3 {[%emt 0:00:09]} a5 {[%emt 0:04:59]} 32. h4 {[%emt 0:00:25]} Bc3 33. Kh3 {[%emt 0:00:11]} Bb2 {[%emt 0:05:36]} 34. a4 {[%emt 0:00:28]} b5 35. Rg5 Rxg5 {[%emt 0:06:17]} 36. hxg5 {[%emt 0:00:50]} c4 {[%emt 0:00:09]} 37. axb5 {[%emt 0:00:48]} cxb3 {[%emt 0:00:24]} 38. cxb3 {[%emt 0:00:37]} cxb5 {[%emt 0:00:05]} 39. Kg4 {[%emt 0:01:08]} Rd8 {[%emt 0:04:00]} 40. Ne5 {[%emt 0:00:00]} Ra8 {[%emt 0:00:00]} 41. Kxf4 {[%emt 0:11:20]} a4 {[%emt 0:03:25]} 42. bxa4 {[%emt 0:01:16]} bxa4 {[%emt 0:00:12]} 43. Nc4 {[%emt 0:04:10]} a3 {[%emt 0:00:53]} 44. Nxa3 {[%emt 0:01:01]} Rxa3 {[%emt 0:01:16]} 45. d4 {[%emt 0:05:10]} Ra5 {[%emt 0:07:34]} 46. Re5 {[%emt 0:01:37]} Ra4 {[%emt 0:00:08]} 47. Re4 {[%emt 0:00:17]} Kg7 {[%emt 0:00:25]} 48. Kg4 {[%emt 0:00:23]} Ra7 {[%emt 0:01:03]} 49. f4 {[%emt 0:00:37]} Rd7 {[%emt 0:00:18]} 50. Re2 {[%emt 0:02:33]} Ba3 {[%emt 0:00:51]} 51. Ra2 {[%emt 0:02:21]} Bf8 {[%emt 0:00:53]} 52. Kh5 {[%emt 0:01:22]} Rxd4 {[%emt 0:02:16]} 53. Ra7+ {[%emt 0:00:32]} Kg8 {[%emt 0:00:05]} 54. f5 {[%emt 0:01:30]} Rd5 {[%emt 0:00:39]} 55. Kg4 {[%emt 0:00:21]} h5+ {[%emt 0:02:24]} 56. Kxh5 {[%emt 0:01:29]} Rxf5 {[%emt 0:00:18]} 57. Kg6 {[%emt 0:00:35]} Rd5 {[%emt 0:00:06]} 58. Ra6 {[%emt 0:00:35]} Be7 {[%emt 0:00:40]} 59. Ra8+ {[%emt 0:00:33]} Bd8 {[%emt 0:00:12]} 60. Kh6 {[%emt 0:01:41]} Rd6+ {[%emt 0:00:09]} 61. Kh5 {[%emt 0:00:42]} Kf8 {[%emt 0:04:13]} 62. Rb8 {[%emt 0:00:44]} Ke8 {[%emt 0:00:40]} 63. Rb5 {[%emt 0:00:37]} Kf7 {[%emt 0:07:20]} 64. Rb7+ {[%emt 0:01:49]} Kf8 {[%emt 0:00:55]} 65. Rb8 {[%emt 0:00:17]} Rd1 {[%emt 0:00:31]} 66. Kg6 {[%emt 0:00:35]} Rd7 {[%emt 0:01:13]} 67. Ra8 {[%emt 0:00:23]} Kg8 {[%emt 0:01:00]} 68. Rb8 {[%emt 0:00:22]} Rd6+ {[%emt 0:00:59]} 69. Kh5 {[%emt 0:00:24]} Kf7 {[%emt 0:00:27]} 70. Rb7+ {[%emt 0:00:10]} Be7 {[%emt 0:00:37]} 71. g6+ {[%emt 0:00:30]} Kf6 {[%emt 0:00:10]} 72. g7 {[%emt 0:00:26]} Rd8 {[%emt 0:01:02]} 73. Kh6 {[%emt 0:01:16]} Rg8 {[%emt 0:00:13]} 74. Rb1 {[%emt 0:00:27]} Kf7 {[%emt 0:00:06]} 75. Rb7 {[%emt 0:00:14]} Rxg7 {[%emt 0:00:08]} 76. Rxe7+ {[%emt 0:00:04]} Kxe7 {[%emt 0:00:03]} 77. Kxg7 {[%emt 0:00:07]} 1/2-1/2